[Event "Titled Tuesday Blitz August 22 Late 2023"]
[White "Antonios, Johnny"]
[Black "Proleiko, Julian"]
[WhiteFideId "5300843"]
[BlackFideId "30900255"]
[WhiteElo "2390"]
[BlackElo "2588"]
[Result "1-0"]
[Round "3"]
[TimeControl "180+1"]
[Date "2023.08.22"]
[WhiteClock "0:00:32"]
[BlackClock "0:00:03"]
[Board "157"]

1. e4 {[%clk 0:03:00]}  e5 {[%clk 0:02:56]} 2. Nf3 {[%clk 0:03:00]}  d6 {[%clk 0:02:56]} 3. d4 {[%clk 0:03:00]}  exd4 {[%clk 0:02:56]} 4. Nxd4 {[%clk 0:03:00]}  Nf6 {[%clk 0:02:56]} 5. Nc3 {[%clk 0:03:00]}  Be7 {[%clk 0:02:56]} 6. g3 {[%clk 0:03:01]}  O-O {[%clk 0:02:56]} 7. Bg2 {[%clk 0:03:01]}  Re8 {[%clk 0:02:56]} 8. O-O {[%clk 0:03:01]}  c6 {[%clk 0:02:55]} 9. h3 {[%clk 0:03:01]}  a5 {[%clk 0:02:56]} 10. Re1 {[%clk 0:03:00]}  Na6 {[%clk 0:02:53]} 11. b3 {[%clk 0:02:56]}  Bf8 {[%clk 0:02:48]} 12. Bb2 {[%clk 0:02:56]}  Nc5 {[%clk 0:02:48]} 13. Kh2 {[%clk 0:02:55]}  a4 {[%clk 0:02:45]} 14. Rb1 {[%clk 0:02:52]}  g6 {[%clk 0:02:34]} 15. f4 {[%clk 0:02:52]}  Bg7 {[%clk 0:02:34]} 16. Qd2 {[%clk 0:02:52]}  h5 {[%clk 0:02:28]} 17. Rbd1 {[%clk 0:02:51]}  axb3 {[%clk 0:02:27]} 18. axb3 {[%clk 0:02:51]}  h4 {[%clk 0:02:26]} 19. g4 {[%clk 0:02:51]}  Ne6 {[%clk 0:02:24]} 20. Nxe6 {[%clk 0:02:47]}  Bxe6 {[%clk 0:02:24]} 21. Qxd6 {[%clk 0:02:47]}  Qb6 {[%clk 0:02:14]} 22. e5 {[%clk 0:01:59]}  Red8 {[%clk 0:01:21]} 23. Na4 {[%clk 0:01:59]}  Nxg4+ {[%clk 0:01:03]} 24. hxg4 {[%clk 0:01:56]}  Qf2 {[%clk 0:01:00]} 25. Qb4 {[%clk 0:01:06]}  Bxg4 {[%clk 0:00:45]} 26. Rxd8+ {[%clk 0:00:51]}  Rxd8 {[%clk 0:00:44]} 27. Qc3 {[%clk 0:00:44]}  Rd2 {[%clk 0:00:35]} 28. Rg1 {[%clk 0:00:43]}  Bh6 {[%clk 0:00:27]} 29. e6 {[%clk 0:00:33]}  Bxf4+ {[%clk 0:00:16]} 30. Kh1 {[%clk 0:00:34]}  Qxg1+ {[%clk 0:00:02]} 31. Kxg1 {[%clk 0:00:33]}  Rd1+ {[%clk 0:00:03]} 32. Kf2 {[%clk 0:00:33]}  Bg3+ {[%clk 0:00:03]} 33. Ke3 {[%clk 0:00:32]}  fxe6 {[%clk 0:00:03]} 34. Qg7# {[%clk 0:00:32]} 1-0


[Site "https://www.chess.com"]

[Event "Titled Tuesday Blitz August 22 Late 2023"]
[White "kaanadayhamle"]
[Black "Bettalli, Francesco"]
[BlackFideId "2816453"]
[WhiteElo "2361"]
[BlackElo "2520"]
[Result "1-0"]
[Round "3"]
[TimeControl "180+1"]
[Date "2023.08.22"]
[WhiteClock "0:01:19"]
[BlackClock "0:01:48"]
[Board "158"]

1. e4 {[%clk 0:03:00]}  e5 {[%clk 0:02:56]} 2. Nf3 {[%clk 0:03:00]}  Nf6 {[%clk 0:02:56]} 3. Nxe5 {[%clk 0:02:59]}  Nc6 {[%clk 0:02:56]} 4. Nxc6 {[%clk 0:02:58]}  dxc6 {[%clk 0:02:57]} 5. Nc3 {[%clk 0:02:59]}  Bc5 {[%clk 0:02:55]} 6. Be2 {[%clk 0:02:56]}  h5 {[%clk 0:02:56]} 7. d3 {[%clk 0:02:55]}  Ng4 {[%clk 0:02:55]} 8. Bxg4 {[%clk 0:02:47]}  hxg4 {[%clk 0:02:56]} 9. Qe2 {[%clk 0:02:43]}  Qd6 {[%clk 0:02:51]} 10. g3 {[%clk 0:02:38]}  Be6 {[%clk 0:02:50]} 11. Bf4 {[%clk 0:02:38]}  Qd4 {[%clk 0:02:49]} 12. Be3 {[%clk 0:02:38]}  Qb4 {[%clk 0:02:49]} 13. Bxc5 {[%clk 0:02:31]}  Qxb2 {[%clk 0:02:50]} 14. Kd2 {[%clk 0:02:14]}  Rxh2 {[%clk 0:02:22]} 15. Rhb1 {[%clk 0:02:05]}  Qxa1 {[%clk 0:02:19]} 16. Rxa1 {[%clk 0:02:05]}  b6 {[%clk 0:02:20]} 17. Be3 {[%clk 0:02:04]}  c5 {[%clk 0:02:20]} 18. Nd5 {[%clk 0:02:02]}  O-O-O {[%clk 0:02:09]} 19. Bf4 {[%clk 0:02:00]}  c6 {[%clk 0:02:08]} 20. Nc3 {[%clk 0:01:44]}  c4 {[%clk 0:02:06]} 21. Be3 {[%clk 0:01:38]}  cxd3 {[%clk 0:02:03]} 22. cxd3 {[%clk 0:01:39]}  Bc4 {[%clk 0:02:04]} 23. Qxg4+ {[%clk 0:01:39]}  Kb7 {[%clk 0:02:02]} 24. d4 {[%clk 0:01:36]}  g6 {[%clk 0:02:01]} 25. a4 {[%clk 0:01:30]}  Be6 {[%clk 0:01:52]} 26. Qe2 {[%clk 0:01:26]}  f5 {[%clk 0:01:50]} 27. a5 {[%clk 0:01:22]}  fxe4 {[%clk 0:01:49]} 28. axb6 {[%clk 0:01:22]}  axb6 {[%clk 0:01:47]} 29. Qa6+ {[%clk 0:01:21]}  Kc7 {[%clk 0:01:48]} 30. Qa7+ {[%clk 0:01:19]}  Kd6 {[%clk 0:01:48]} 31. Bf4# {[%clk 0:01:19]} 1-0


[Site "https://www.chess.com"]

[Event "Titled Tuesday Blitz August 22 Late 2023"]
[White "Figorito, Nick"]
[Black "Loay, Sameer"]
[WhiteFideId "30923689"]
[BlackFideId "8104239"]
[WhiteElo "2359"]
[BlackElo "2517"]
[Result "0-1"]
[Round "3"]
[TimeControl "180+1"]
[Date "2023.08.22"]
[WhiteClock "0:00:07"]
[BlackClock "0:02:01"]
[Board "159"]

1. Nf3 {[%clk 0:03:00]}  Nf6 {[%clk 0:03:00]} 2. g3 {[%clk 0:03:01]}  g6 {[%clk 0:03:00]} 3. Bg2 {[%clk 0:03:02]}  Bg7 {[%clk 0:03:01]} 4. O-O {[%clk 0:03:03]}  O-O {[%clk 0:03:01]} 5. c4 {[%clk 0:03:03]}  d6 {[%clk 0:03:02]} 6. Nc3 {[%clk 0:03:04]}  e5 {[%clk 0:03:02]} 7. d3 {[%clk 0:03:05]}  c6 {[%clk 0:03:03]} 8. e4 {[%clk 0:03:04]}  a6 {[%clk 0:03:02]} 9. b4 {[%clk 0:03:04]}  Nbd7 {[%clk 0:03:00]} 10. a4 {[%clk 0:03:04]}  a5 {[%clk 0:03:00]} 11. b5 {[%clk 0:03:04]}  Nc5 {[%clk 0:03:00]} 12. Ba3 {[%clk 0:03:02]}  Re8 {[%clk 0:03:01]} 13. Re1 {[%clk 0:02:45]}  Ne6 {[%clk 0:02:54]} 14. d4 {[%clk 0:02:35]}  exd4 {[%clk 0:02:50]} 15. Nb1 {[%clk 0:01:51]}  c5 {[%clk 0:02:48]} 16. Nbd2 {[%clk 0:01:37]}  Ng4 {[%clk 0:02:47]} 17. h3 {[%clk 0:01:36]}  Ne5 {[%clk 0:02:47]} 18. Nxe5 {[%clk 0:01:31]}  dxe5 {[%clk 0:02:48]} 19. Nb3 {[%clk 0:01:30]}  b6 {[%clk 0:02:48]} 20. Nc1 {[%clk 0:01:27]}  Nf8 {[%clk 0:02:35]} 21. Nd3 {[%clk 0:01:26]}  Be6 {[%clk 0:02:35]} 22. Rc1 {[%clk 0:01:25]}  Nd7 {[%clk 0:02:35]} 23. Rc2 {[%clk 0:01:23]}  f6 {[%clk 0:02:33]} 24. Bc1 {[%clk 0:01:22]}  Qe7 {[%clk 0:02:33]} 25. Bd2 {[%clk 0:01:20]}  Qf7 {[%clk 0:02:33]} 26. Qc1 {[%clk 0:01:16]}  Rad8 {[%clk 0:02:32]} 27. Bf1 {[%clk 0:01:15]}  f5 {[%clk 0:02:32]} 28. exf5 {[%clk 0:01:11]}  gxf5 {[%clk 0:02:26]} 29. Bg5 {[%clk 0:01:11]}  Rc8 {[%clk 0:02:25]} 30. Bh6 {[%clk 0:01:09]}  e4 {[%clk 0:02:25]} 31. Nb2 {[%clk 0:00:57]}  d3 {[%clk 0:02:16]} 32. Bxg7 {[%clk 0:00:58]}  Qxg7 {[%clk 0:02:17]} 33. Rd2 {[%clk 0:00:45]}  Ne5 {[%clk 0:02:17]} 34. Bg2 {[%clk 0:00:44]}  h5 {[%clk 0:02:18]} 35. h4 {[%clk 0:00:43]}  Rcd8 {[%clk 0:02:14]} 36. Kh2 {[%clk 0:00:31]}  Ng4+ {[%clk 0:02:14]} 37. Kg1 {[%clk 0:00:31]}  Bf7 {[%clk 0:02:05]} 38. Nd1 {[%clk 0:00:30]}  Qd4 {[%clk 0:02:03]} 39. Bh3 {[%clk 0:00:20]}  Qxc4 {[%clk 0:01:59]} 40. Qxc4 {[%clk 0:00:17]}  Bxc4 {[%clk 0:02:00]} 41. Bxg4 {[%clk 0:00:17]}  hxg4 {[%clk 0:02:00]} 42. Ne3 {[%clk 0:00:17]}  Be6 {[%clk 0:02:01]} 43. Rc1 {[%clk 0:00:07]}  Rd4 {[%clk 0:02:01]} 0-1


[Site "https://www.chess.com"]

[Event "Titled Tuesday Blitz August 22 Late 2023"]
[White "Real_taiatai"]
[Black "Dubreuil, Julien"]
[BlackFideId "621285"]
[WhiteElo "2516"]
[BlackElo "2340"]
[Result "0-1"]
[Round "3"]
[TimeControl "180+1"]
[Date "2023.08.22"]
[WhiteClock "0:02:36"]
[BlackClock "0:02:15"]
[Board "160"]

1. e4 {[%clk 0:03:00]}  c5 {[%clk 0:02:59]} 2. Nf3 {[%clk 0:03:01]}  Nc6 {[%clk 0:02:59]} 3. Bb5 {[%clk 0:03:00]}  g6 {[%clk 0:03:00]} 4. Bxc6 {[%clk 0:03:01]}  dxc6 {[%clk 0:03:00]} 5. c3 {[%clk 0:03:01]}  Nf6 {[%clk 0:02:59]} 6. O-O {[%clk 0:03:01]}  Nxe4 {[%clk 0:02:58]} 7. d4 {[%clk 0:03:01]}  Bg7 {[%clk 0:02:57]} 8. Re1 {[%clk 0:03:01]}  Nf6 {[%clk 0:02:56]} 9. dxc5 {[%clk 0:02:59]}  O-O {[%clk 0:02:56]} 10. Qa4 {[%clk 0:02:57]}  Bg4 {[%clk 0:02:52]} 11. Ne5 {[%clk 0:02:56]}  Be6 {[%clk 0:02:48]} 12. Nd2 {[%clk 0:02:55]}  Nd7 {[%clk 0:02:45]} 13. Nxd7 {[%clk 0:02:54]}  Qxd7 {[%clk 0:02:45]} 14. Nf3 {[%clk 0:02:54]}  Bd5 {[%clk 0:02:43]} 15. Qf4 {[%clk 0:02:48]}  f6 {[%clk 0:02:34]} 16. Nd4 {[%clk 0:02:41]}  e5 {[%clk 0:02:32]} 17. Qh4 {[%clk 0:02:35]}  exd4 {[%clk 0:02:31]} 18. cxd4 {[%clk 0:02:36]}  Rae8 {[%clk 0:02:27]} 19. Be3 {[%clk 0:02:36]}  g5 {[%clk 0:02:24]} 20. Qg3 {[%clk 0:02:37]}  h5 {[%clk 0:02:22]} 21. h4 {[%clk 0:02:37]}  Qg4 {[%clk 0:02:16]} 22. Qc7 {[%clk 0:02:36]}  Qxg2# {[%clk 0:02:15]} 0-1


[Site "https://www.chess.com"]

[Event "Titled Tuesday Blitz August 22 Late 2023"]
[White "Janaszak, Dawid"]
[Black "Battlecruiser_Operational"]
[WhiteFideId "1119206"]
[WhiteElo "2508"]
[BlackElo "2358"]
[Result "1-0"]
[Round "3"]
[TimeControl "180+1"]
[Date "2023.08.22"]
[WhiteClock "0:00:40"]
[BlackClock "0:00:00"]
[Board "161"]

1. e4 {[%clk 0:03:00]}  e6 {[%clk 0:02:58]} 2. b3 {[%clk 0:02:59]}  d5 {[%clk 0:02:57]} 3. Bb2 {[%clk 0:03:00]}  dxe4 {[%clk 0:02:56]} 4. Nc3 {[%clk 0:03:00]}  Nf6 {[%clk 0:02:56]} 5. Qe2 {[%clk 0:03:00]}  Nc6 {[%clk 0:02:54]} 6. O-O-O {[%clk 0:03:01]}  Nd4 {[%clk 0:02:52]} 7. Qe1 {[%clk 0:03:01]}  a5 {[%clk 0:02:43]} 8. a4 {[%clk 0:02:58]}  Bb4 {[%clk 0:02:41]} 9. Nxe4 {[%clk 0:02:57]}  b5 {[%clk 0:02:15]} 10. Nf3 {[%clk 0:02:38]}  Nxf3 {[%clk 0:02:11]} 11. gxf3 {[%clk 0:02:39]}  bxa4 {[%clk 0:02:07]} 12. Bb5+ {[%clk 0:02:18]}  Bd7 {[%clk 0:01:49]} 13. Nxf6+ {[%clk 0:02:03]}  gxf6 {[%clk 0:01:50]} 14. Bxa4 {[%clk 0:01:47]}  Bxa4 {[%clk 0:01:47]} 15. bxa4 {[%clk 0:01:48]}  Rb8 {[%clk 0:01:45]} 16. Qe4 {[%clk 0:01:43]}  Qd7 {[%clk 0:01:38]} 17. d4 {[%clk 0:01:30]}  Qxa4 {[%clk 0:01:24]} 18. d5 {[%clk 0:01:30]}  Qa2 {[%clk 0:00:45]} 19. dxe6 {[%clk 0:01:17]}  fxe6 {[%clk 0:00:31]} 20. Qc6+ {[%clk 0:01:12]}  Kf7 {[%clk 0:00:30]} 21. Rd7+ {[%clk 0:01:03]}  Kf8 {[%clk 0:00:11]} 22. Qxc7 {[%clk 0:00:59]}  Qxb2+ {[%clk 0:00:06]} 23. Kxb2 {[%clk 0:01:00]}  Bd6+ {[%clk 0:00:06]} 24. Qb7 {[%clk 0:00:58]}  Rxb7+ {[%clk 0:00:06]} 25. Rxb7 {[%clk 0:00:59]}  Be7 {[%clk 0:00:06]} 26. Rd1 {[%clk 0:00:57]}  Kf7 {[%clk 0:00:06]} 27. Rdd7 {[%clk 0:00:57]}  Re8 {[%clk 0:00:07]} 28. Kb3 {[%clk 0:00:54]}  e5 {[%clk 0:00:07]} 29. Ka4 {[%clk 0:00:55]}  Ke6 {[%clk 0:00:08]} 30. Kxa5 {[%clk 0:00:50]}  Bc5 {[%clk 0:00:05]} 31. Rxh7 {[%clk 0:00:49]}  Bxf2 {[%clk 0:00:05]} 32. c4 {[%clk 0:00:47]}  Rc8 {[%clk 0:00:05]} 33. Kb4 {[%clk 0:00:45]}  Bc5+ {[%clk 0:00:04]} 34. Kb5 {[%clk 0:00:46]}  Bd4 {[%clk 0:00:04]} 35. Rhc7 {[%clk 0:00:44]}  Ra8 {[%clk 0:00:04]} 36. c5 {[%clk 0:00:42]}  Ra2 {[%clk 0:00:05]} 37. c6 {[%clk 0:00:40]}  Rxh2 {[%clk 0:00:05]} 38. Rf7 {[%clk 0:00:37]}  Rb2+ {[%clk 0:00:03]} 39. Kc4 {[%clk 0:00:37]}  Rc2+ {[%clk 0:00:04]} 40. Kd3 {[%clk 0:00:33]}  Rxc6 {[%clk 0:00:03]} 41. Rbe7+ {[%clk 0:00:32]}  Kf5 {[%clk 0:00:04]} 42. Rc7 {[%clk 0:00:28]}  Rxc7 {[%clk 0:00:03]} 43. Rxc7 {[%clk 0:00:29]}  Kf4 {[%clk 0:00:03]} 44. Ke2 {[%clk 0:00:28]}  f5 {[%clk 0:00:04]} 45. Rh7 {[%clk 0:00:28]}  e4 {[%clk 0:00:04]} 46. fxe4 {[%clk 0:00:27]}  Kxe4 {[%clk 0:00:04]} 47. Rh4+ {[%clk 0:00:27]}  f4 {[%clk 0:00:05]} 48. Rh7 {[%clk 0:00:27]}  Be5 {[%clk 0:00:05]} 49. Re7 {[%clk 0:00:26]}  Kf5 {[%clk 0:00:05]} 50. Re8 {[%clk 0:00:26]}  Bd6 {[%clk 0:00:05]} 51. Rd8 {[%clk 0:00:26]}  Be5 {[%clk 0:00:06]} 52. Kf3 {[%clk 0:00:26]}  Bc7 {[%clk 0:00:06]} 53. Rd7 {[%clk 0:00:27]}  Be5 {[%clk 0:00:06]} 54. Rb7 {[%clk 0:00:27]}  Bd6 {[%clk 0:00:06]} 55. Rb5+ {[%clk 0:00:28]}  Be5 {[%clk 0:00:06]} 56. Ra5 {[%clk 0:00:28]}  Kf6 {[%clk 0:00:04]} 57. Ke4 {[%clk 0:00:29]}  Bc7 {[%clk 0:00:04]} 58. Ra6+ {[%clk 0:00:29]}  Kg5 {[%clk 0:00:04]} 59. Ra7 {[%clk 0:00:28]}  Bd6 {[%clk 0:00:04]} 60. Rg7+ {[%clk 0:00:27]}  Kf6 {[%clk 0:00:03]} 61. Rg1 {[%clk 0:00:28]}  Bc7 {[%clk 0:00:02]} 62. Rc1 {[%clk 0:00:28]}  Bd6 {[%clk 0:00:03]} 63. Rc6 {[%clk 0:00:29]}  Ke7 {[%clk 0:00:03]} 64. Kd5 {[%clk 0:00:30]}  Bb8 {[%clk 0:00:03]} 65. Rb6 {[%clk 0:00:29]}  Bc7 {[%clk 0:00:02]} 66. Rb7 {[%clk 0:00:30]}  Kd8 {[%clk 0:00:02]} 67. Kc6 {[%clk 0:00:29]}  Be5 {[%clk 0:00:03]} 68. Rf7 {[%clk 0:00:29]}  Ke8 {[%clk 0:00:02]} 69. Rf5 {[%clk 0:00:30]}  Bb8 {[%clk 0:00:02]} 70. Kd5 {[%clk 0:00:31]}  Ke7 {[%clk 0:00:01]} 71. Ke4 {[%clk 0:00:30]}  Bc7 {[%clk 0:00:02]} 72. Rb5 {[%clk 0:00:31]}  Ke6 {[%clk 0:00:02]} 73. Rb7 {[%clk 0:00:31]}  Bd6 {[%clk 0:00:02]} 74. Rh7 {[%clk 0:00:32]}  Kf6 {[%clk 0:00:02]} 75. Rh6+ {[%clk 0:00:32]}  Ke7 {[%clk 0:00:03]} 76. Kd5 {[%clk 0:00:33]}  Bc7 {[%clk 0:00:02]} 77. Rh7+ {[%clk 0:00:34]}  Kd8 {[%clk 0:00:02]} 78. Kc6 {[%clk 0:00:35]}  Be5 {[%clk 0:00:02]} 79. Rh5 {[%clk 0:00:35]}  Bf6 {[%clk 0:00:01]} 80. Rf5 {[%clk 0:00:35]}  Be7 {[%clk 0:00:01]} 81. Rxf4 {[%clk 0:00:36]}  Ke8 {[%clk 0:00:02]} 82. Kd5 {[%clk 0:00:36]}  Kd7 {[%clk 0:00:02]} 83. Rf7 {[%clk 0:00:36]}  Ke8 {[%clk 0:00:02]} 84. Rh7 {[%clk 0:00:37]}  Kd7 {[%clk 0:00:02]} 85. Rg7 {[%clk 0:00:37]}  Ke8 {[%clk 0:00:03]} 86. Ke6 {[%clk 0:00:38]}  Bf8 {[%clk 0:00:03]} 87. Rb7 {[%clk 0:00:39]}  Be7 {[%clk 0:00:01]} 88. Rb8+ {[%clk 0:00:39]}  Bd8 {[%clk 0:00:00]} 89. Ra8 {[%clk 0:00:40]} 1-0


[Site "https://www.chess.com"]

[Event "Titled Tuesday Blitz August 22 Late 2023"]
[White "Pinto, Daniel"]
[Black "Fajdetic, Hrvoje"]
[WhiteFideId "3303144"]
[BlackFideId "14501945"]
[WhiteElo "2444"]
[BlackElo "2252"]
[Result "0-1"]
[Round "3"]
[TimeControl "180+1"]
[Date "2023.08.22"]
[WhiteClock "0:00:00"]
[BlackClock "0:00:10"]
[Board "165"]

1. e4 {[%clk 0:03:00]}  c5 {[%clk 0:02:56]} 2. Nf3 {[%clk 0:03:01]}  a6 {[%clk 0:02:56]} 3. c3 {[%clk 0:03:01]}  d5 {[%clk 0:02:56]} 4. exd5 {[%clk 0:02:55]}  Qxd5 {[%clk 0:02:57]} 5. Be2 {[%clk 0:02:56]}  Bg4 {[%clk 0:02:56]} 6. O-O {[%clk 0:02:56]}  Nf6 {[%clk 0:02:56]} 7. h3 {[%clk 0:02:57]}  Bh5 {[%clk 0:02:56]} 8. d4 {[%clk 0:02:57]}  e6 {[%clk 0:02:55]} 9. Be3 {[%clk 0:02:57]}  Nbd7 {[%clk 0:02:55]} 10. c4 {[%clk 0:02:41]}  Qd6 {[%clk 0:02:55]} 11. Nc3 {[%clk 0:02:38]}  Be7 {[%clk 0:02:48]} 12. dxc5 {[%clk 0:02:02]}  Qxd1 {[%clk 0:02:42]} 13. Rfxd1 {[%clk 0:02:03]}  Bxc5 {[%clk 0:02:42]} 14. g4 {[%clk 0:01:15]}  Bxe3 {[%clk 0:02:41]} 15. fxe3 {[%clk 0:01:16]}  Bg6 {[%clk 0:02:39]} 16. b4 {[%clk 0:01:13]}  Rd8 {[%clk 0:02:28]} 17. a4 {[%clk 0:01:02]}  Ne4 {[%clk 0:02:20]} 18. Nxe4 {[%clk 0:01:00]}  Bxe4 {[%clk 0:02:21]} 19. a5 {[%clk 0:00:58]}  Ke7 {[%clk 0:02:14]} 20. Rd4 {[%clk 0:00:55]}  Bc6 {[%clk 0:01:46]} 21. Rad1 {[%clk 0:00:31]}  e5 {[%clk 0:01:32]} 22. R4d2 {[%clk 0:00:27]}  f6 {[%clk 0:01:30]} 23. b5 {[%clk 0:00:27]}  axb5 {[%clk 0:01:30]} 24. cxb5 {[%clk 0:00:27]}  Be4 {[%clk 0:01:28]} 25. a6 {[%clk 0:00:23]}  bxa6 {[%clk 0:01:25]} 26. bxa6 {[%clk 0:00:22]}  Nc5 {[%clk 0:01:25]} 27. Ra1 {[%clk 0:00:03]}  Rxd2 {[%clk 0:00:39]} 28. Nxd2 {[%clk 0:00:04]}  Bd5 {[%clk 0:00:22]} 29. Ra5 {[%clk 0:00:04]}  Rc8 {[%clk 0:00:20]} 30. a7 {[%clk 0:00:04]}  Ba8 {[%clk 0:00:18]} 31. Bf3 {[%clk 0:00:01]}  e4 {[%clk 0:00:15]} 32. Be2 {[%clk 0:00:01]}  Nd3 {[%clk 0:00:15]} 33. Bxd3 {[%clk 0:00:01]}  exd3 {[%clk 0:00:16]} 34. Kf2 {[%clk 0:00:01]}  Rc2 {[%clk 0:00:14]} 35. Ke1 {[%clk 0:00:02]}  Rc1+ {[%clk 0:00:14]} 36. Kf2 {[%clk 0:00:02]}  Rc2 {[%clk 0:00:15]} 37. Ke1 {[%clk 0:00:02]}  Rc1+ {[%clk 0:00:15]} 38. Kf2 {[%clk 0:00:03]}  Rh1 {[%clk 0:00:15]} 39. e4 {[%clk 0:00:02]}  Rxh3 {[%clk 0:00:15]} 40. Rb5 {[%clk 0:00:02]}  Rh2+ {[%clk 0:00:14]} 41. Ke3 {[%clk 0:00:02]}  Rh3+ {[%clk 0:00:14]} 42. Kd4 {[%clk 0:00:02]}  Rh2 {[%clk 0:00:12]} 43. Kxd3 {[%clk 0:00:03]}  Rh1 {[%clk 0:00:11]} 44. Rb7+ {[%clk 0:00:03]}  Bxb7 {[%clk 0:00:11]} 45. Nb3 {[%clk 0:00:00]}  Rh3+ {[%clk 0:00:10]} 0-1


[Site "https://www.chess.com"]

[Event "Titled Tuesday Blitz August 22 Late 2023"]
[White "Oliveira, Tiago Batista"]
[Black "Santos, Marcus Vinicius Moreira"]
[WhiteFideId "2108291"]
[BlackFideId "2103125"]
[WhiteElo "2148"]
[BlackElo "2430"]
[Result "0-1"]
[Round "3"]
[TimeControl "180+1"]
[Date "2023.08.22"]
[WhiteClock "0:00:03"]
[BlackClock "0:00:34"]
[Board "168"]

1. d4 {[%clk 0:03:00]}  Nf6 {[%clk 0:02:29]} 2. c4 {[%clk 0:02:57]}  e6 {[%clk 0:02:29]} 3. g3 {[%clk 0:02:56]}  d5 {[%clk 0:02:26]} 4. Nf3 {[%clk 0:02:54]}  Be7 {[%clk 0:02:27]} 5. Bg2 {[%clk 0:02:54]}  O-O {[%clk 0:02:27]} 6. O-O {[%clk 0:02:54]}  dxc4 {[%clk 0:02:28]} 7. Qc2 {[%clk 0:02:53]}  a6 {[%clk 0:02:26]} 8. Qxc4 {[%clk 0:02:47]}  b5 {[%clk 0:02:26]} 9. Qc2 {[%clk 0:02:46]}  Bb7 {[%clk 0:02:26]} 10. Nbd2 {[%clk 0:02:34]}  Nbd7 {[%clk 0:02:25]} 11. e4 {[%clk 0:02:33]}  c5 {[%clk 0:02:25]} 12. e5 {[%clk 0:02:33]}  Nd5 {[%clk 0:02:24]} 13. dxc5 {[%clk 0:02:30]}  Nxc5 {[%clk 0:02:24]} 14. Rd1 {[%clk 0:02:30]}  Rc8 {[%clk 0:02:18]} 15. Qb1 {[%clk 0:02:26]}  Nb4 {[%clk 0:02:11]} 16. a3 {[%clk 0:02:22]}  Nbd3 {[%clk 0:02:11]} 17. b4 {[%clk 0:02:20]}  Nxc1 {[%clk 0:02:03]} 18. Rxc1 {[%clk 0:02:12]}  Na4 {[%clk 0:02:02]} 19. Rxc8 {[%clk 0:01:57]}  Qxc8 {[%clk 0:02:03]} 20. Ne4 {[%clk 0:01:55]}  Nc3 {[%clk 0:01:54]} 21. Nxc3 {[%clk 0:01:52]}  Qxc3 {[%clk 0:01:55]} 22. Ng5 {[%clk 0:00:42]}  Bxg5 {[%clk 0:01:53]} 23. Bxb7 {[%clk 0:00:43]}  Qxe5 {[%clk 0:01:45]} 24. Bxa6 {[%clk 0:00:42]}  Rb8 {[%clk 0:01:34]} 25. a4 {[%clk 0:00:38]}  bxa4 {[%clk 0:01:24]} 26. Bd3 {[%clk 0:00:29]}  g6 {[%clk 0:01:15]} 27. Rxa4 {[%clk 0:00:29]}  Be7 {[%clk 0:01:12]} 28. b5 {[%clk 0:00:22]}  Bc5 {[%clk 0:01:10]} 29. Re4 {[%clk 0:00:15]}  Qd6 {[%clk 0:01:06]} 30. Kg2 {[%clk 0:00:12]}  Qb6 {[%clk 0:01:01]} 31. Re2 {[%clk 0:00:12]}  Rd8 {[%clk 0:01:01]} 32. h4 {[%clk 0:00:11]}  Qb7+ {[%clk 0:00:58]} 33. Be4 {[%clk 0:00:12]}  Qb6 {[%clk 0:00:57]} 34. Rc2 {[%clk 0:00:12]}  Rd4 {[%clk 0:00:50]} 35. Re2 {[%clk 0:00:10]}  Rb4 {[%clk 0:00:46]} 36. Qd3 {[%clk 0:00:10]}  Qxb5 {[%clk 0:00:44]} 37. Qd8+ {[%clk 0:00:09]}  Bf8 {[%clk 0:00:44]} 38. Bd3 {[%clk 0:00:09]}  Qb8 {[%clk 0:00:43]} 39. Qf6 {[%clk 0:00:09]}  Qd6 {[%clk 0:00:39]} 40. Qf3 {[%clk 0:00:08]}  Rb3 {[%clk 0:00:35]} 41. Qe4 {[%clk 0:00:03]}  Qxd3 {[%clk 0:00:34]} 0-1


[Site "https://www.chess.com"]